fUSD/lending_fUSD_20250312
["ID","MTS","AMOUNT","RATE_DAILY","PERIOD"]
[356016282,1741799442010,-500.0,0.00016273,2]
[356016284,1741799442020,-500.0,0.00016273,2]
[356016286,1741799442029,-500.0,0.00016273,2]
[356016287,1741799442038,-500.0,0.00016273,2]
[356016289,1741799442049,-500.0,0.00016273,2]
[356016291,1741799442058,-500.0,0.00016273,2]
[356016293,1741799442067,-500.0,0.00016273,2]
[356016295,1741799442076,-500.0,0.00016273,2]
[356016297,1741799442087,-500.0,0.00016273,2]
[356016299,1741799442096,-500.0,0.00016273,2]
[356016301,1741799442105,-500.0,0.00016273,2]
[356016303,1741799442114,-500.0,0.00016273,2]
[356016305,1741799442123,-500.0,0.00016273,2]
[356016307,1741799442132,-500.0,0.00016273,2]
[356016309,1741799442142,-500.0,0.00016273,2]
[356016311,1741799442151,-500.0,0.00016273,2]
[356016313,1741799442159,-500.0,0.00016273,2]
[356016315,1741799442168,-500.0,0.00016273,2]
[356016317,1741799442177,-500.0,0.00016273,2]
[356016319,1741799442186,-500.0,0.00016273,2]
[356016321,1741799442195,-500.0,0.00016273,2]
[356016323,1741799442203,-500.0,0.00016273,2]
[356016325,1741799442212,-500.0,0.00016273,2]
[356016326,1741799442221,-500.0,0.00016273,2]
[356016328,1741799442230,-500.0,0.00016273,2]
[356016330,1741799442240,-500.0,0.00016273,2]
[356016332,1741799442249,-500.0,0.00016273,2]
[356016334,1741799442258,-500.0,0.00016273,2]
[356016336,1741799442267,-500.0,0.00016273,2]
[356016338,1741799442277,-500.0,0.00016273,2]
[356016340,1741799442286,-500.0,0.00016273,2]
[356016342,1741799442296,-500.0,0.00016273,2]
[356016344,1741799442305,-500.0,0.00016273,2]
[356016346,1741799442314,-500.0,0.00016273,2]
[356016348,1741799442323,-500.0,0.00016273,2]
[356016350,1741799442333,-500.0,0.00016273,2]
[356016352,1741799442342,-500.0,0.00016273,2]
[356016354,1741799442352,-500.0,0.00016273,2]
[356016355,1741799442361,-500.0,0.00016273,2]
[356016357,1741799442370,-500.0,0.00016273,2]
[356016359,1741799442379,-500.0,0.00016273,2]
[356016361,1741799442388,-500.0,0.00016273,2]
[356016363,1741799442397,-500.0,0.00016273,2]
[356016365,1741799442406,-500.0,0.00016273,2]
[356016367,1741799442416,-500.0,0.00016273,2]
[356016369,1741799442425,-500.0,0.00016273,2]
[356016371,1741799442434,-500.0,0.00016273,2]
[356016373,1741799442444,-500.0,0.00016273,2]
[356016375,1741799442453,-500.0,0.00016273,2]
[356016377,1741799442463,-500.0,0.00016273,2]
[356016379,1741799442472,-500.0,0.00016273,2]
[356016381,1741799442481,-500.0,0.00016273,2]
[356016383,1741799442490,-500.0,0.00016273,2]
[356016385,1741799442499,-500.0,0.00016273,2]
[356016387,1741799442508,-500.0,0.00016273,2]
[356016389,1741799442518,-500.0,0.00016273,2]
[356016391,1741799442526,-500.0,0.00016273,2]
[356016393,1741799442536,-500.0,0.00016273,2]
[356016395,1741799442547,-500.0,0.00016273,2]
[356016396,1741799442556,-500.0,0.00016273,2]
[356016398,1741799442567,-500.0,0.00016273,2]
[356016400,1741799442576,-500.0,0.00016273,2]
[356016402,1741799442585,-500.0,0.00016273,2]
[356016404,1741799442594,-500.0,0.00016273,2]
[356016406,1741799442603,-500.0,0.00016273,2]
[356016408,1741799442613,-500.0,0.00016273,2]
[356016410,1741799442622,-500.0,0.00016273,2]
[356016412,1741799442631,-500.0,0.00016273,2]
[356016414,1741799442640,-500.0,0.00016273,2]
[356016416,1741799442649,-500.0,0.00016273,2]
[356016418,1741799442659,-500.0,0.00016273,2]
[356016420,1741799442667,-500.0,0.00016273,2]
[356016422,1741799442676,-500.0,0.00016273,2]
[356016424,1741799442685,-500.0,0.00016273,2]
[356016425,1741799442694,-500.0,0.00016273,2]
[356016427,1741799442705,-500.0,0.00016273,2]
[356016429,1741799442714,-566.0,0.00016273,2]
[356016431,1741799442723,-500.0,0.00016273,2]
[356016433,1741799442732,-500.0,0.00016273,2]
[356016436,1741799442742,-500.0,0.00016273,2]
[356016438,1741799442751,-500.0,0.00016273,2]
[356016441,1741799442760,-500.0,0.00016273,2]
[356016443,1741799442769,-500.0,0.00016273,2]
[356016445,1741799442778,-500.0,0.00016273,2]
[356016447,1741799442787,-500.0,0.00016273,2]
[356016449,1741799442798,-500.0,0.00016273,2]
[356016451,1741799442807,-500.0,0.00016273,2]
[356016453,1741799442816,-500.0,0.00016273,2]
[356016455,1741799442825,-500.0,0.00016273,2]
[356016457,1741799442835,-500.0,0.00016273,2]
[356016459,1741799442843,-500.0,0.00016273,2]
[356016460,1741799442853,-500.0,0.00016273,2]
[356016462,1741799442862,-500.0,0.00016273,2]
[356016464,1741799442871,-500.0,0.00016273,2]
[356016466,1741799442880,-500.0,0.00016273,2]
[356016468,1741799442889,-500.0,0.00016273,2]
[356016470,1741799442899,-500.0,0.00016273,2]
[356016472,1741799442907,-500.0,0.00016273,2]
[356016474,1741799442917,-500.0,0.00016273,2]
[356016476,1741799442926,-500.0,0.00016273,2]
[356016478,1741799442936,-500.0,0.00016273,2]
[356016480,1741799442946,-500.0,0.00016273,2]
[356016482,1741799442955,-500.0,0.00016273,2]
[356016484,1741799442964,-500.0,0.00016273,2]
[356016486,1741799442974,-500.0,0.00016273,2]
[356016488,1741799442983,-500.0,0.00016273,2]
[356016490,1741799442993,-500.0,0.00016273,2]
[356016492,1741799443003,-500.0,0.00016273,2]
[356016494,1741799443014,-500.0,0.00016273,2]
[356016496,1741799443024,-500.0,0.00016273,2]
[356016497,1741799443033,-500.0,0.00016273,2]
[356016499,1741799443043,-500.0,0.00016273,2]
[356016501,1741799443056,-500.0,0.00016273,2]
[356016503,1741799443065,-500.0,0.00016273,2]
[356016505,1741799443074,-500.0,0.00016273,2]
[356016507,1741799443083,-500.0,0.00016273,2]
[356016509,1741799443093,-500.0,0.00016273,2]
[356016511,1741799443103,-500.0,0.00016273,2]
[356016513,1741799443112,-500.0,0.00016273,2]
[356016515,1741799443121,-500.0,0.00016273,2]
[356016517,1741799443131,-500.0,0.00016273,2]
[356016519,1741799443140,-500.0,0.00016273,2]
[356016521,1741799443149,-500.0,0.00016273,2]
[356016523,1741799443158,-500.0,0.00016273,2]
[356016525,1741799443168,-500.0,0.00016273,2]
[356016526,1741799443177,-500.0,0.00016273,2]
[356016528,1741799443186,-500.0,0.00016273,2]
[356016530,1741799443195,-500.0,0.00016273,2]
[356016532,1741799443204,-500.0,0.00016273,2]
[356016534,1741799443214,-500.0,0.00016273,2]
[356016536,1741799443223,-500.0,0.00016273,2]
[356016538,1741799443232,-500.0,0.00016273,2]
[356016540,1741799443243,-500.0,0.00016273,2]
[356016542,1741799443252,-500.0,0.00016273,2]
[356016544,1741799443261,-500.0,0.00016273,2]
[356016546,1741799443270,-500.0,0.00016273,2]
[356016548,1741799443280,-500.0,0.00016273,2]
[356016550,1741799443289,-500.0,0.00016273,2]
[356016552,1741799443299,-500.0,0.00016273,2]
[356016554,1741799443308,-500.0,0.00016273,2]
[356016556,1741799443317,-500.0,0.00016273,2]
[356016558,1741799443327,-500.0,0.00016273,2]
[356016560,1741799443336,-500.0,0.00016273,2]
[356016561,1741799443346,-500.0,0.00016273,2]
[356016563,1741799443355,-500.0,0.00016273,2]
[356016565,1741799443364,-500.0,0.00016273,2]
[356016567,1741799443373,-500.0,0.00016273,2]
[356016569,1741799443382,-500.0,0.00016273,2]
[356016571,1741799443391,-500.0,0.00016273,2]
[356016573,1741799443400,-500.0,0.00016273,2]
[356016576,1741799443409,-500.0,0.00016273,2]
[356016579,1741799443419,-500.0,0.00016273,2]
[356016582,1741799443428,-500.0,0.00016273,2]
[356016585,1741799443437,-500.0,0.00016273,2]
[356016588,1741799443446,-500.0,0.00016273,2]
[356016590,1741799443455,-500.0,0.00016273,2]
[356016593,1741799443464,-500.0,0.00016273,2]
[356016596,1741799443473,-500.0,0.00016273,2]
[356016599,1741799443482,-500.0,0.00016273,2]
[356016602,1741799443491,-500.0,0.00016273,2]
[356016605,1741799443500,-500.0,0.00016273,2]
[356016608,1741799443508,-500.0,0.00016273,2]
[356016611,1741799443518,-500.0,0.00016273,2]
[356016614,1741799443527,-500.0,0.00016273,2]
[356016616,1741799443536,-500.0,0.00016273,2]
[356016619,1741799443545,-500.0,0.00016273,2]
[356016622,1741799443555,-500.0,0.00016273,2]
[356016625,1741799443563,-500.0,0.00016273,2]
[356016627,1741799443572,-500.0,0.00016273,2]
[356016629,1741799443581,-500.0,0.00016273,2]
[356016631,1741799443590,-500.0,0.00016273,2]
[356016633,1741799443600,-500.0,0.00016273,2]
[356016635,1741799443609,-500.0,0.00016273,2]
[356016637,1741799443618,-500.0,0.00016273,2]
[356016639,1741799443627,-500.0,0.00016273,2]
[356016640,1741799443636,-500.0,0.00016273,2]
[356016642,1741799443646,-500.0,0.00016273,2]
[356016644,1741799443656,-500.0,0.00016273,2]
[356016646,1741799443665,-500.0,0.00016273,2]
[356016648,1741799443674,-500.0,0.00016273,2]
[356016650,1741799443683,-500.0,0.00016273,2]
[356016652,1741799443692,-500.0,0.00016273,2]
[356016654,1741799443702,-500.0,0.00016273,2]
[356016656,1741799443711,-500.0,0.00016273,2]
[356016658,1741799443720,-500.0,0.00016273,2]
[356016660,1741799443729,-500.0,0.00016273,2]
[356016662,1741799443738,-500.0,0.00016273,2]
[356016663,1741799443747,-500.0,0.00016273,2]
[356016665,1741799443757,-500.0,0.00016273,2]
[356016667,1741799443767,-500.0,0.00016273,2]
[356016669,1741799443776,-500.0,0.00016273,2]
[356016671,1741799443785,-500.0,0.00016273,2]
[356016673,1741799443794,-500.0,0.00016273,2]
[356016675,1741799443807,-500.0,0.00016273,2]
[356016677,1741799443817,-500.0,0.00016273,2]
[356016679,1741799443826,-500.0,0.00016273,2]
[356016681,1741799443835,-500.0,0.00016273,2]
[356016683,1741799443845,-500.0,0.00016273,2]
[356016685,1741799443855,-500.0,0.00016273,2]
[356016687,1741799443864,-500.0,0.00016273,2]
[356016689,1741799443874,-500.0,0.00016273,2]
[356016691,1741799443883,-500.0,0.00016273,2]
[356016692,1741799443892,-500.0,0.00016273,2]
[356016694,1741799443901,-500.0,0.00016273,2]
[356016695,1741799443910,-500.0,0.00016273,2]
[356016696,1741799443919,-500.0,0.00016273,2]
[356016697,1741799443928,-500.0,0.00016273,2]
[356016698,1741799443937,-500.0,0.00016273,2]
[356016699,1741799443946,-500.0,0.00016273,2]
[356016700,1741799443955,-500.0,0.00016273,2]
[356016701,1741799443964,-500.0,0.00016273,2]
[356016702,1741799443973,-958.0,0.00016273,2]
[356016703,1741799443982,-500.0,0.00016273,2]
[356016704,1741799443990,-500.0,0.00016273,2]
[356016705,1741799443999,-500.0,0.00016273,2]
[356016706,1741799444015,-500.0,0.00016273,2]
[356016707,1741799444026,-500.0,0.00016273,2]
[356016708,1741799444035,-500.0,0.00016273,2]
[356016709,1741799444044,-500.0,0.00016273,2]
[356016710,1741799444055,-500.0,0.00016273,2]
[356016711,1741799444064,-500.0,0.00016273,2]
[356016712,1741799444073,-500.0,0.00016273,2]
[356016713,1741799444082,-500.0,0.00016273,2]
[356016714,1741799444092,-500.0,0.00016273,2]
[356016715,1741799444101,-500.0,0.00016273,2]
[356016717,1741799444110,-500.0,0.00016273,2]
[356016719,1741799444119,-500.0,0.00016273,2]
[356016721,1741799444128,-500.0,0.00016273,2]
[356016723,1741799444137,-500.0,0.00016273,2]
[356016725,1741799444147,-500.0,0.00016273,2]
[356016726,1741799444157,-500.0,0.00016273,2]
[356016728,1741799444166,-500.0,0.00016273,2]
[356016730,1741799444175,-500.0,0.00016273,2]
[356016732,1741799444185,-500.0,0.00016273,2]
[356016734,1741799444194,-500.0,0.00016273,2]
[356016736,1741799444204,-500.0,0.00016273,2]
[356016738,1741799444213,-500.0,0.00016273,2]
[356016740,1741799444222,-500.0,0.00016273,2]
[356016742,1741799444232,-500.0,0.00016273,2]
[356016744,1741799444242,-500.0,0.00016273,2]
[356016746,1741799444252,-500.0,0.00016273,2]
[356016748,1741799444261,-500.0,0.00016273,2]
[356016750,1741799444270,-500.0,0.00016273,2]
[356016752,1741799444279,-500.0,0.00016273,2]
[356016754,1741799444287,-500.0,0.00016273,2]
[356016756,1741799444297,-500.0,0.00016273,2]
[356016758,1741799444308,-500.0,0.00016273,2]
[356016760,1741799444318,-500.0,0.00016273,2]
[356016762,1741799444327,-500.0,0.00016273,2]
[356016764,1741799444337,-500.0,0.00016273,2]
[356016766,1741799444347,-500.0,0.00016273,2]
[356016768,1741799444356,-500.0,0.00016273,2]
[356016770,1741799444366,-500.0,0.00016273,2]
[356016772,1741799444375,-500.0,0.00016273,2]
[356016774,1741799444384,-500.0,0.00016273,2]
[356016776,1741799444394,-500.0,0.00016273,2]
[356016778,1741799444403,-500.0,0.00016273,2]
[356016780,1741799444413,-500.0,0.00016273,2]
[356016782,1741799444423,-500.0,0.00016273,2]
[356016784,1741799444433,-500.0,0.00016273,2]
[356016786,1741799444442,-500.0,0.00016273,2]
[356016788,1741799444451,-948.0,0.00016273,2]
[356016790,1741799444462,-500.0,0.00016273,2]
[356016792,1741799444471,-500.0,0.00016273,2]
[356016794,1741799444480,-500.0,0.00016273,2]
[356016796,1741799444488,-500.0,0.00016273,2]
[356016798,1741799444497,-500.0,0.00016273,2]
[356016800,1741799444507,-500.0,0.00016273,2]
[356016802,1741799444516,-500.0,0.00016273,2]
[356016804,1741799444524,-500.0,0.00016273,2]
[356016806,1741799444534,-500.0,0.00016273,2]
[356016808,1741799444543,-500.0,0.00016273,2]
[356016810,1741799444555,-500.0,0.00016273,2]
[356016812,1741799444564,-500.0,0.00016273,2]
[356016813,1741799444573,-500.0,0.00016273,2]
[356016815,1741799444582,-500.0,0.00016273,2]
[356016817,1741799444591,-500.0,0.00016273,2]
[356016819,1741799444600,-500.0,0.00016273,2]
[356016821,1741799444609,-500.0,0.00016273,2]
[356016823,1741799444619,-500.0,0.00016273,2]
[356016825,1741799444628,-500.0,0.00016273,2]
[356016827,1741799444637,-500.0,0.00016273,2]
[356016829,1741799444646,-500.0,0.00016273,2]
[356016831,1741799444656,-500.0,0.00016273,2]
[356016833,1741799444666,-500.0,0.00016273,2]
[356016835,1741799444675,-746.0,0.00016273,2]
[356016837,1741799444684,-264.0,0.0001635,2]
[356016846,1741799444839,-229.0,0.0001635,2]
[356016847,1741799444849,-3849.1349703,0.00016427,2]
[356016848,1741799444858,-9521.1,0.00016438,2]
[356016849,1741799444868,-300.0,0.00016438,2]
[356016850,1741799444877,-500.0,0.00016473,2]
[356016851,1741799444887,-545.06,0.00016493,30]
[356016852,1741799444896,-150.0,0.00016583,2]
[356016853,1741799444905,-248.96,0.000167,7]
[356016854,1741799444915,-150.0,0.00016943,2]
[356016855,1741799444924,-750.0,0.00017,2]
[356016856,1741799444934,-342.74734093,0.0001704,2]
[356016857,1741799444943,-264.0,0.0001708,2]
[356016858,1741799444952,-229.0,0.0001708,2]
[356016860,1741799444962,-1000.0,0.00017111,2]
[356016861,1741799444971,-481.75,0.0001712,2]
[356016863,1741799444980,-517.63,0.00017126,2]
[356016865,1741799444991,-150.0,0.00017304,2]
[356016866,1741799445000,-3615.98628064,0.00017576,2]
[356016867,1741799445012,-387.8675605,0.00017588,2]
[356016868,1741799445021,-208.6520738,0.00017588,2]
[356016869,1741799445031,-150.0,0.00017664,2]
[356016870,1741799445040,-264.0,0.000178,2]
[356016871,1741799445053,-229.0,0.000178,2]
[356016872,1741799445063,-600.0,0.00017808,2]
[356016873,1741799445073,-5700.0,0.000179,6]
[356016874,1741799445084,-150.0,0.00018025,2]
[356016875,1741799445093,-200.0,0.00018082,2]
[356016876,1741799445103,-150.0,0.00018385,2]
[356016877,1741799445113,-264.0,0.0001853,2]
[356016878,1741799445123,-229.0,0.0001853,2]
[356016879,1741799445133,-153.77,0.000186,2]
[356016880,1741799445143,-153.77,0.000186,2]
[356016881,1741799445154,-150.0,0.00018746,2]
[356016882,1741799445164,-800.0,0.00019,2]
[356016883,1741799445175,-150.0,0.00019106,2]
[356016884,1741799445185,-3615.98628064,0.00019131,2]
[356016885,1741799445195,-332.35904996,0.00019249,2]
[356016886,1741799445204,-264.0,0.0001925,2]
[356016887,1741799445214,-229.0,0.0001925,2]
[356016888,1741799445223,-481.75,0.00019345,2]
[356016889,1741799445232,-150.0,0.00019467,2]
[356016890,1741799445241,-150.0,0.00019827,2]
[356016891,1741799445251,-264.0,0.0001998,2]
[356016892,1741799445261,-229.0,0.0001998,2]
[356016893,1741799445270,-300.0,0.0002,7]
[356016894,1741799445280,-3000.0,0.0002,2]
[356016895,1741799445290,-4000.0,0.0002,2]
[356016896,1741799445299,-150.0,0.00020188,2]
[356016897,1741799445310,-174.12,0.00020548,2]
[356016898,1741799445320,-150.0,0.00020548,2]
[356016899,1741799445330,-3615.98628064,0.00020686,2]
[356016900,1741799445339,-264.0,0.000207,2]
[356016901,1741799445348,-229.0,0.000207,2]
[356016902,1741799445357,-1000.0,0.00020852,2]
[356016903,1741799445366,-545.06,0.00020971,30]
[356016904,1741799445375,-850.0,0.00021,2]
[356016905,1741799445384,-207.47,0.000213,14]
[356016906,1741799445393,-207.0,0.0002143,2]
[356016907,1741799445403,-264.0,0.0002143,2]
[356016908,1741799445413,-229.0,0.0002143,2]
[356016909,1741799445423,-1897.0,0.000215,2]
[356016910,1741799445432,-481.75,0.0002157,2]
[356016911,1741799445442,-1000.0,0.00021952,2]
[356016912,1741799445451,-207.0,0.0002215,2]
[356016913,1741799445461,-264.0,0.0002215,2]
[356016914,1741799445471,-229.0,0.0002215,2]
[356016915,1741799445480,-3615.98628064,0.00022241,3]
[356016916,1741799445490,-3000.0,0.000227,2]
[356016917,1741799445500,-342.74734092,0.000228,4]
[356016918,1741799445509,-207.0,0.0002288,2]
[356016919,1741799445519,-264.0,0.0002288,2]
[356016920,1741799445528,-229.0,0.0002288,2]
[356016921,1741799445538,-900.0,0.00023,2]
[356016922,1741799445547,-200.0,0.00023,2]
[356016923,1741799445559,-1000.0,0.00023168,2]
[356016924,1741799445568,-207.0,0.000236,2]
[356016925,1741799445577,-264.0,0.000236,2]
[356016926,1741799445587,-229.0,0.000236,2]
[356016928,1741799445596,-236626.0,0.000236,2]
[356016930,1741799445606,-481.75,0.00023796,2]
[356016931,1741799445615,-3615.98628064,0.00023797,3]
[356016932,1741799445624,-1068.35,0.00023836,2]
[356016933,1741799445633,-44499.0,0.00024136,2]
[356016935,1741799445643,-207.0,0.0002432,2]
[356016936,1741799445652,-264.0,0.0002432,2]
[356016937,1741799445661,-229.0,0.0002432,2]
[356016938,1741799445670,-5548.0,0.000244,3]
[356016939,1741799445679,-2000.0,0.000245,4]
[356016940,1741799445688,-1000.0,0.00024658,2]
[356016942,1741799445698,-254.0,0.000247,6]
[356016943,1741799445706,-3406.9400242,0.00024766,2]
[356016944,1741799445716,-2964.7450781,0.00024783,2]
[356016945,1741799445726,-343.3086983,0.00024783,2]
[356016946,1741799445736,-298.749836,0.00024783,2]
[356016947,1741799445745,-208.6520738,0.00024783,2]
[356016948,1741799445754,-208.6520738,0.00024783,2]
[356016949,1741799445764,-500.0,0.00024799,2]
[356016950,1741799445773,-151.0,0.000248,7]
[356016951,1741799445782,-610117.754699,0.000248,3]
[356016952,1741799445792,-151.0,0.000248,7]
[356016953,1741799445802,-350.0,0.000248,7]
[356016954,1741799445811,-350.0,0.000248,7]
[356016955,1741799445820,-500.0,0.00024836,7]
[356016956,1741799445830,-254.1909737,0.00024883,2]
[356016957,1741799445839,-208.6520738,0.00024883,2]
[356016958,1741799445849,-7700.0,0.000249,9]
[356016959,1741799445858,-624852.071006,0.000249,3]
[356016960,1741799445868,-950.0,0.00025,2]
[356016961,1741799445877,-4000.0,0.00025,2]
[356016962,1741799445886,-207.0,0.0002505,2]
[356016963,1741799445895,-264.0,0.0002505,2]
[356016964,1741799445904,-229.0,0.0002505,2]
[356016965,1741799445913,-2000.0,0.0002505,4]
[356016966,1741799445923,-500.0,0.00025073,2]
[356016967,1741799445933,-5548.0,0.000251,5]
[356016968,1741799445942,-280.0,0.000253,10]
[356016969,1741799445951,-500.0,0.00025347,2]
[356016970,1741799445961,-3615.98628064,0.00025352,4]
[356016971,1741799445970,-545.06,0.0002545,30]
[356016972,1741799445979,-3000.0,0.000255,2]
[356016973,1741799445989,-2522.550132,0.00025561,2]
[356016974,1741799445998,-2000.0,0.000256,4]
[356016975,1741799446012,-500.0,0.00025621,2]
[356016976,1741799446021,-207.0,0.0002577,2]
[356016977,1741799446031,-264.0,0.0002577,2]
[356016978,1741799446040,-229.0,0.0002577,2]
[356016979,1741799446052,-500.0,0.00025895,2]
[356016980,1741799446062,-481.75,0.00026021,2]
[356016981,1741799446071,-1000.0,0.00026056,2]
[356016982,1741799446080,-2000.0,0.0002615,4]
[356016983,1741799446091,-500.0,0.00026169,2]
[356016984,1741799446101,-518.93,0.00026443,2]
[356016985,1741799446110,-500.0,0.0002648,7]
[356016986,1741799446119,-207.0,0.000265,2]
[356016987,1741799446128,-264.0,0.000265,2]
[356016988,1741799446138,-229.0,0.000265,2]
[356016989,1741799446147,-470.60583969,0.0002654,5]
[356016990,1741799446156,-2000.0,0.000267,4]
[356016991,1741799446166,-1000.0,0.00026849,2]
[356016992,1741799446176,-590.92,0.00026849,2]
[356016993,1741799446185,-3615.98628064,0.00026907,4]
[356016994,1741799446195,-1000.0,0.00027,2]
[356016995,1741799446204,-150.0,0.0002709,2]
[356016996,1741799446214,-150.0,0.00027113,2]
[356016997,1741799446223,-207.0,0.0002722,2]
[356016998,1741799446232,-207.0,0.0002722,2]
[356016999,1741799446241,-219.0,0.0002722,2]
[356017000,1741799446252,-264.0,0.0002722,2]
[356017001,1741799446261,-229.0,0.0002722,2]
[356017002,1741799446271,-206.0,0.0002722,2]
[356017004,1741799446281,-150.0,0.0002723,2]
[356017006,1741799446290,-2000.0,0.0002725,4]
[356017008,1741799446299,-150.0,0.00027293,2]
[356017009,1741799446313,-150.0,0.00027363,2]
[356017010,1741799446322,-500.0,0.00027397,14]
[356017011,1741799446331,-350.0,0.00027397,2]
[356017012,1741799446341,-150.0,0.00027412,2]
[356017013,1741799446350,-150.0,0.00027433,2]
[356017014,1741799446359,-150.0,0.00027434,2]
[356017015,1741799446368,-150.0,0.00027499,2]
[356017016,1741799446377,-150.0,0.0002753,2]
[356017017,1741799446386,-150.0,0.00027533,2]
[356017018,1741799446395,-150.0,0.00027541,2]
[356017019,1741799446405,-150.0,0.00027564,2]
[356017020,1741799446414,-150.0,0.00027576,2]
[356017021,1741799446422,-150.0,0.00027604,2]
[356017022,1741799446431,-150.0,0.00027616,2]
[356017023,1741799446441,-150.0,0.00027622,2]
[356017024,1741799446450,-150.0,0.0002764,2]
[356017025,1741799446460,-150.0,0.00027663,2]
[356017026,1741799446469,-350.0,0.00027671,2]
[356017027,1741799446478,-150.0,0.00027681,2]
[356017028,1741799446487,-150.0,0.00027684,2]
[356017029,1741799446498,-150.0,0.00027696,2]
[356017030,1741799446508,-3733.2881964,0.00027697,2]
[356017031,1741799446517,-150.0,0.00027731,2]
[356017032,1741799446526,-150.0,0.00027739,2]
[356017033,1741799446535,-1641.0,0.00027742,2]
[356017034,1741799446544,-150.0,0.00027743,2]
[356017035,1741799446556,-150.0,0.00027747,2]
[356017036,1741799446566,-150.0,0.00027749,2]
[356017037,1741799446575,-150.0,0.00027764,2]
[356017038,1741799446584,-150.0,0.00027764,2]
[356017039,1741799446593,-150.0,0.00027769,2]
[356017040,1741799446603,-150.0,0.00027779,2]
[356017041,1741799446612,-150.0,0.00027782,2]
[356017042,1741799446621,-2000.0,0.000278,4]
[356017043,1741799446630,-391.0,0.0002783,15]
[356017044,1741799446639,-150.0,0.00027844,2]
[356017045,1741799446649,-150.0,0.00027851,2]
[356017046,1741799446658,-150.0,0.00027865,2]
[356017047,1741799446667,-150.0,0.00027892,2]
[356017048,1741799446676,-506.3709396,0.000279,2]
[356017049,1741799446685,-150.0,0.00027902,2]
[356017050,1741799446695,-1000.0,0.00027904,2]
[356017051,1741799446705,-150.0,0.00027906,2]
[356017052,1741799446715,-150.0,0.00027912,2]
[356017053,1741799446724,-150.0,0.00027924,2]
[356017054,1741799446733,-1000.0,0.00027932,2]
[356017055,1741799446742,-150.0,0.00027935,2]
[356017056,1741799446751,-1000.0,0.00027941,2]
[356017057,1741799446760,-350.0,0.00027945,2]
[356017058,1741799446770,-150.0,0.00027949,2]
[356017059,1741799446779,-207.0,0.0002795,2]
[356017060,1741799446788,-207.0,0.0002795,30]
[356017061,1741799446798,-219.0,0.0002795,2]
[356017062,1741799446808,-264.0,0.0002795,2]
[356017063,1741799446818,-229.0,0.0002795,2]
[356017064,1741799446827,-206.0,0.0002795,2]
[356017065,1741799446836,-150.0,0.00027953,2]
[356017066,1741799446846,-150.0,0.00027974,2]
[356017067,1741799446855,-209.6321114,0.00027981,2]
[356017068,1741799446864,-208.6520738,0.00027981,2]